Cogmind - Beta 12 @@@ ROGUE MODE // 2023.05.31 @ 19:39:05 Player: Inkie Result: Destroyed by Y-45 Defender with Beam Rifle Performance ------------- Evolutions (2) 1000 Regions Visited (10) 2000 Robots Destroyed (153) 765 Value Destroyed (8227) 8227 Prototype IDs (6) 120 Alien Tech Used (0) 0 Bonus (1557) 1557 TOTAL SCORE: 13669 Bonus ------- High Alert Combat Kills 678 Follower Combat Kills 291 Entered Garrisons 600 Friendly Fire -12 Cogmind --------- Core Integrity 0/550 Matter 280/300 Energy 69/125 System Corruption 0% Temperature Cool (32) Movement Rolling (135) Ox3 Location -8/Garrison Parts ------- > --- POWER (1) -------- Light Ion Engine > --- PROPULSION (2) --- Armored Wheel Armored Wheel > --- UTILITY (6) ------ Advanced Cooling System Improved Coolant Injector Huge Storage Unit Improved Weapon Cycler Hacking Suite Hacking Suite > --- WEAPON (2) ------- Gatling Laser Gatling Laser > --- INVENTORY (25) --- Armored Wheel Armored Wheel Armored Wheel High-capacity Battery (250) High-capacity Matter Pod (200) Advanced Targeting Computer Improved Propulsion Shielding Light Armor Plating Light Armor Plating Improved Thermal Shield Hacking Suite Authchip [Propulsion] Authchip [Device] Authchip [Storage] Long-range Tractor Beam Gatling Laser Gatling Laser Gatling Laser Variable Charge Gun EM Pulse Cannon Shock Bomb Launcher Missile Launcher Axe Peak State ------------ > --- POWER ------------ Nuclear Core > --- PROPULSION ------- Compact Wheel Armored Wheel > --- UTILITY ---------- Advanced Cooling System Improved Coolant Injector Huge Storage Unit Improved Weapon Cycler Hacking Suite Hacking Suite > --- WEAPON ----------- Gatling Laser Gatling Laser > --- INVENTORY -------- Nuclear Core Light Treads Wheel Improved VTOL Module Nuclear Pulse Array High-capacity Battery High-capacity Matter Pod Improved Propulsion Shielding Light Armor Plating Improved Thermal Shield Hacking Suite Authchip [Propulsion] Authchip [Device] Authchip [Storage] Gatling Laser Gatling Laser Variable Charge Gun EM Pulse Cannon Mass Driver Mass Driver Shock Bomb Launcher Missile Launcher Axe [Rating: 47] Favorites ----------- Power Light Nuclear Core Engine Ion Engine Power Core Light Nuclear Core Propulsion Light Treads Treads Light Treads Wheel Armored Wheel Hover Unit Aerolev Unit Flight Unit Improved VTOL Module Utility Hacking Suite Device Improved Heat Sink Storage Huge Storage Unit Hackware Hacking Suite Protection Light Armor Plating Weapon Improved Light Cannon Energy Gun Gatling Laser Energy Cannon EM Pulse Cannon Ballistic Gun Assault Rifle Ballistic Cannon Improved Light Cannon Launcher Improved Grenade Launcher Slashing Weapon Axe Build | -11 -10 -10 -10 -9 -8 -8 -8 -8 -8 -8 ------- Run | Jun Mat Min Exi Min Mat Gar Mat Gar Mat Gar Slots Evolved 4 | . . . . . 4 . . . . . Power . | . . . . . . . . . . . Propulsion . | . . . . . . . . . . . Utility 4 | . . . . . 4 . . . . . Weapon . | . . . . . . . . . . . Parts Attached 157 | 6 10 7 1 . 55 17 14 26 6 15 Power 13 | 1 1 1 . . 5 2 1 1 . 1 Engine 3 | 1 1 . . . . . . . . 1 Core 10 | . . 1 . . 5 2 1 1 . . Reactor . | . . . . . . . . . . . Propulsion 27 | 2 . 1 . . 13 2 4 4 . 1 Treads 12 | 2 . . . . 7 . 2 1 . . Leg . | . . . . . . . . . . . Wheel 12 | . . 1 . . 3 2 2 3 . 1 Hover 1 | . . . . . 1 . . . . . Flight 2 | . . . . . 2 . . . . . Utility 34 | 1 2 1 1 . 12 5 5 5 2 . Device 17 | . 1 1 . . 6 1 3 4 1 . Storage 4 | 1 1 . 1 . 1 . . . . . Processor . | . . . . . . . . . . . Hackware 2 | . . . . . 1 . 1 . . . Protection 11 | . . . . . 4 4 1 1 1 . Artifact . | . . . . . . . . . . . Weapon 83 | 2 7 4 . . 25 8 4 16 4 13 Energy Gun 28 | 1 3 . . . 5 . 2 8 3 6 Energy Cannon 8 | . . . . . 1 2 . 3 . 2 Ballistic Gun 2 | 1 . . . . 1 . . . . . Ballistic Cannon 22 | . 4 3 . . 12 2 1 . . . Launcher 10 | . . 1 . . 3 2 1 1 . 2 Special Weapon . | . . . . . . . . . . . Impact Weapon . | . . . . . . . . . . . Slashing Weapon 13 | . . . . . 3 2 . 4 1 3 Piercing Weapon . | . . . . . . . . . . . Special Melee Weapon . | . . . . . . . . . . . Unidentified Prototypes 6 | . . . . . 6 . . . . . Parts Lost 36 | . 2 3 . . 12 10 1 4 2 2 Power 6 | . 1 . . . . 3 . 1 . 1 Propulsion 10 | . 1 1 . . 4 1 1 1 . 1 Utility 13 | . . . . . 6 5 . 1 1 . Weapon 7 | . . 2 . . 2 1 . 1 1 . Highest Loss Streak 4 | . 1 2 . . 4 3 1 2 2 1 To Critical Strikes . | . . . . . . . . . . . Average Slot Usage (%) 90 | . 85 84 85 85 86 90 93 99 99 99 Engine 2 | . 9 10 . . . . . . . 8 Core 6 | . . 3 14 14 9 8 8 8 9 . Treads 9 | . 25 10 . . 12 6 7 2 . . Wheel 8 | . . 3 14 14 4 10 9 15 18 17 Device 17 | . 6 14 14 14 23 13 18 21 18 27 Storage 10 | . 14 14 14 14 9 9 9 9 9 9 Hackware 6 | . . . . . 1 9 11 18 18 18 Protection 6 | . . . . . 8 17 10 5 8 . Energy Gun 4 | . 8 . . . 1 . 3 11 14 12 Energy Cannon 1 | . . . . . 1 . . 4 1 1 Ballistic Cannon 9 | . 14 27 28 28 10 6 5 . . . Launcher 1 | . . . . . 2 . 2 . . 1 Slashing Weapon 2 | . . . . . 1 8 7 2 1 2 Naked Turns . | . . . . . . . . . . . Heaviest Build 112 | 13 34 34 54 54 106 112 107 105 103 99 Greatest Support 40 | 40 40 20 16 16 40 28 12 28 24 24 Greatest Overweight (x) 10 | . 1 2 3 3 10 9 8 8 4 4 Average Overweight (x) 3 | . . 1 2 3 3 6 7 4 3 3 Largest Inventory Capacity 25 | 8 15 15 20 20 25 25 25 25 25 25 Average Capacity 21 | 6 14 15 17 20 21 25 25 25 25 25 Most Carried 25 | 2 15 15 16 16 25 25 25 25 25 24 Average Carried 20 | . 12 14 15 16 20 22 24 24 24 23 Final Capacity 25 | 8 15 15 20 20 25 25 25 25 25 25 Final Carried 25 | 2 15 15 16 16 21 25 25 25 24 23 Class Distribution -------------------- 52% | Mutant 25% | Hacker-Mutant 21% | Scavenger-Mutant Dominant Class ---------------- Mutant | -10/Materials Mutant | -10/Mines Mutant | -10/Exiles Mutant | -9/Mines Mutant | -8/Materials Scavenger-Mutant | -8/Garrison Mutant | -8/Materials Hacker-Mutant | -8/Garrison Hacker-Mutant | -8/Materials Hacker-Mutant | -8/Garrison Resources | -11 -10 -10 -10 -9 -8 -8 -8 -8 -8 -8 ----------- Run | Jun Mat Min Exi Min Mat Gar Mat Gar Mat Gar Matter Collected 3845 | 239 315 266 . 150 1219 747 388 258 60 203 Remotely 151 | . . . . . 151 . . . . . Salvage Created 4908 | . 392 299 . 90 1060 750 304 853 752 408 Parts 245 | . 26 16 . 4 59 33 16 28 30 33 Haulers Intercepted 4 | . . . . . 4 . . . . . Recyclers Shooed 1 | . . . . . . . . . 1 . Parts Field Recycled . | . . . . . . . . . . . Retrieved Matter . | . . . . . . . . . . . Parts Self-Destructed . | . . . . . . . . . . . Prevented . | . . . . . . . . . . . Kills | -11 -10 -10 -10 -9 -8 -8 -8 -8 -8 -8 ------- Run | Jun Mat Min Exi Min Mat Gar Mat Gar Mat Gar Combat Hostiles Destroyed 138 | . 16 12 . 3 31 17 12 15 16 16 Melee 7 | . . . . . 2 5 . . . . Guns 49 | . 6 . . . 2 . 3 13 15 10 Cannons 54 | . 10 10 . 3 18 7 6 . . . AOE 25 | . . 2 . . 9 5 3 . . 6 Classes Destroyed 16 | . 3 2 . . 6 2 2 1 . . Worker 1 | . . . . . 1 . . . . . Tunneler 1 | . . 1 . . . . . . . . Hauler 4 | . . . . . 4 . . . . . Recycler 3 | . . . . . 2 . . . 1 . Mechanic 1 | . . . . . 1 . . . . . Operator 4 | . 1 . . . 3 . . . . . Watcher 2 | . . . . . 1 . . . . 1 Swarmer 32 | . 6 . . . 10 . 4 4 . 8 Cutter 2 | . . . . . . 2 . . . . Grunt 73 | . 10 11 . 3 15 11 2 6 10 5 Brawler 2 | . . . . . . . 1 1 . . Duelist 3 | . . . . . . . 1 . 2 . Sentry 22 | . . . . . 6 3 4 3 3 3 Specialist 1 | . . . . . . 1 . . . . Hunter 2 | . . . . . . . . 1 1 . Assembled 1 | . . 1 . . . . . . . . Best Kill Streak 9 | . 3 5 . 3 4 4 3 6 9 4 Combat Bots Only 8 | . 3 4 . 3 4 4 3 6 8 4 Max Kills in Single Turn 3 | . 2 3 . 1 2 2 3 2 2 2 Gunslinging 1 | . . . . . . . . 1 . . Exploded 3 | . . 2 . . 2 2 3 . . 2 Melee 1 | . . . . . 1 1 . . . . Uniques/NPCs Destroyed . | . . . . . . . . . . . Combat | -11 -10 -10 -10 -9 -8 -8 -8 -8 -8 -8 -------- Run | Jun Mat Min Exi Min Mat Gar Mat Gar Mat Gar Damage Taken 5708 | . 729 441 . 24 1760 1131 282 503 375 463 Core 734 | . 112 72 . . 163 134 25 64 51 113 Absorbed by Shields 310 | . . . . . 243 64 . . . 3 Redirected to Shielding 11 | . . . . . . 9 2 . . . Core Remaining (%) 63 | 100 . . . 26 . . . . . . Volleys Fired 386 | . 68 35 . 5 104 39 28 37 36 34 Largest 2 | . 2 2 . 2 2 2 2 2 2 2 Hottest 160 | . 90 78 . 78 108 108 160 160 160 160 Shots Fired 642 | . 125 67 . 10 171 50 36 67 64 52 Gun 262 | . 74 . . . 9 . 16 60 64 39 Cannon 346 | . 51 66 . 10 148 39 19 6 . 7 Launcher 34 | . . 1 . . 14 11 1 1 . 6 Special . | . . . . . . . . . . . Kinetic 342 | . 82 66 . 10 135 30 19 . . . Thermal 253 | . 43 . . . 22 9 16 60 64 39 Explosive 34 | . . 1 . . 14 11 1 1 . 6 Electromagnetic 13 | . . . . . . . . 6 . 7 Robot Hit Streak 30 | . 12 10 . 5 10 15 30 11 16 13 Robot Miss Streak 4 | . 4 3 . 1 3 2 4 4 3 4 Penetration Max . | . . . . . . . . . . . Secondary Targets 2 | . . . . . . . . 2 . . Max Gunslinging Chain 1 | . . . . . . . . 1 . . Shots Hit Robots 481 | . 67 40 . 7 111 57 32 67 61 39 Core Hits 268 | . 24 15 . 4 60 33 17 36 46 33 Critical Kills . | . . . . . . . . . . . Critical Parts Destroyed 1 | . 1 . . . . . . . . . Critical Strikes 19 | . 2 2 . 1 5 3 2 4 . . Burn 1 | . 1 . . . . . . . . . Destroy 1 | . 1 . . . . . . . . . Blast 10 | . . 2 . 1 4 1 2 . . . Sever 7 | . . . . . 1 2 . 4 . . Melee Attacks 108 | . . . . . 19 46 . 30 1 12 Impact . | . . . . . . . . . . . Slashing 108 | . . . . . 19 46 . 30 1 12 Piercing . | . . . . . . . . . . . Sneak Attacks 7 | . . . . . 6 . . . . 1 Combat Hostiles . | . . . . . . . . . . . Follow-up Attacks . | . . . . . . . . . . . Damage Inflicted 14699 | . 1058 927 . 151 3984 2867 1138 1847 1431 1296 Guns 4122 | . 563 . . . 50 . 397 1031 1431 650 Cannons 5119 | . 495 825 . 151 2220 820 608 . . . Explosions 2901 | . . 102 . . 1097 983 133 . . 586 Melee 2554 | . . . . . 614 1064 . 816 . 60 Ramming 3 | . . . . . 3 . . . . . Kinetic 5065 | . 722 825 . 151 2034 725 608 . . . Thermal 4176 | . 336 . . . 236 95 397 1031 1431 650 Explosive 2901 | . . 102 . . 1097 983 133 . . 586 Electromagnetic . | . . . . . . . . . . . Impact . | . . . . . . . . . . . Slashing 2554 | . . . . . 614 1064 . 816 . 60 Piercing . | . . . . . . . . . . . Highest Corruption . | . . . . . . . . . . . Average Corruption . | . . . . . . . . . . . Corruption Purged . | . . . . . . . . . . . Corruption Blocked . | . . . . . . . . . . . Overload Shots . | . . . . . . . . . . . Overflow Damage 394 | . . 14 . . 227 91 7 28 . 27 Projectiles 50 | . . 14 . . 29 . 7 . . . Explosions 143 | . . . . . 127 14 . . . 2 Melee 201 | . . . . . 71 77 . 28 . 25 Knockbacks 51 | . 5 12 . 1 24 6 3 . . . Impact . | . . . . . . . . . . . Kinetic 48 | . 5 10 . 1 23 6 3 . . . Secondary 3 | . . 2 . . 1 . . . . . Self-Inflicted Damage 331 | . . . . . 232 73 . . . 26 Shots 12 | . . . . . 7 4 . . . 1 Rammed 2 | . 1 . . . 1 . . . . . Targets Rammed 2 | . 1 . . . 1 . . . . . Kicked . | . . . . . . . . . . . Crushed . | . . . . . . . . . . . Highest Temperature 294 | . 192 258 . . 294 78 . 134 188 101 Average Temperature 60 | . 54 63 . . 100 28 . 25 69 35 Received Heat Transfer 2251 | . 282 270 . 15 670 375 72 207 207 153 Effects 3 | . . 2 . . 1 . . . . . Energy Bleed 1 | . . . . . 1 . . . . . Interference 2 | . . 2 . . . . . . . . Siege Activations . | . . . . . . . . . . . Robots Corrupted . | . . . . . . . . . . . Combat Hostiles . | . . . . . . . . . . . Parts Fried . | . . . . . . . . . . . Impact Corruptions . | . . . . . . . . . . . Robots Melted 3 | . . . . . . . . 2 1 . Combat Hostiles 3 | . . . . . . . . 2 1 . Parts Melted 14 | . . . . . . . 1 8 5 . Heat Transferred 9438 | . 846 . . . 444 148 900 2325 3275 1500 Parts Sabotaged . | . . . . . . . . . . . Parts Stolen . | . . . . . . . . . . . Parts Stripped . | . . . . . . . . . . . Power Chain Reactions . | . . . . . . . . . . . Missiles Intercepted . | . . . . . . . . . . . Alert | -11 -10 -10 -10 -9 -8 -8 -8 -8 -8 -8 ------- Run | Jun Mat Min Exi Min Mat Gar Mat Gar Mat Gar Peak Influence 1317 | . 364 302 . 85 486 1317 796 865 533 1216 Initial 641 | . . 73 . . . 316 641 191 421 230 Average 385 | . 176 179 . 43 175 872 407 608 178 736 Maximum Alert Level 4 | . 1 1 . . 2 4 3 3 2 4 Low Security (%) 36 | 100 53 45 . 100 58 . 12 1 66 . Level 1 27 | . 46 54 . . 37 5 49 13 9 8 Level 2 15 | . . . . . 4 17 27 48 24 37 Level 3 15 | . . . . . . 48 10 35 . 40 Level 4 5 | . . . . . . 28 . . . 13 Level 5 . | . . . . . . . . . . . High Security . | . . . . . . . . . . . Max Security . | . . . . . . . . . . . Squads Dispatched 13 | . 4 1 . . 3 . 1 . 4 . Investigation 4 | . 3 . . . . . . . 1 . Extermination . | . . . . . . . . . . . Reinforcement 6 | . 1 . . . 3 . . . 2 . Assault 1 | . . 1 . . . . . . . . Garrison 2 | . . . . . . . 1 . 1 . Intercept . | . . . . . . . . . . . Searches Triggered . | . . . . . . . . . . . Construction Impeded . | . . . . . . . . . . . Haulers Reinforced . | . . . . . . . . . . . Active Scanning Responses . | . . . . . . . . . . . Cargo Convoy Interrupts . | . . . . . . . . . . . Stealth | -11 -10 -10 -10 -9 -8 -8 -8 -8 -8 -8 --------- Run | Jun Mat Min Exi Min Mat Gar Mat Gar Mat Gar Distress Signals 11 | . 2 . . . 5 . 3 . 1 . Communications Jammed . | . . . . . . . . . . . Distress Signals . | . . . . . . . . . . . Times Spotted 213 | . 35 13 . 5 48 19 22 18 23 30 Peak Tracking Total 9 | . 5 4 . 3 7 6 4 3 9 6 Tactical Retreats 10 | . 1 1 . . 2 2 . 1 . 3 Traps | -11 -10 -10 -10 -9 -8 -8 -8 -8 -8 -8 ------- Run | Jun Mat Min Exi Min Mat Gar Mat Gar Mat Gar Traps Triggered 18 | . 2 . . . . 5 . 4 1 6 Indirectly . | . . . . . . . . . . . Trap Hack Attempts . | . . . . . . . . . . . Triggered . | . . . . . . . . . . . Disarmed . | . . . . . . . . . . . Reprogrammed . | . . . . . . . . . . . Reused . | . . . . . . . . . . . Traps Extracted . | . . . . . . . . . . . Installed . | . . . . . . . . . . . Triggered 2 | . . 2 . . . . . . . . Machines | -11 -10 -10 -10 -9 -8 -8 -8 -8 -8 -8 ---------- Run | Jun Mat Min Exi Min Mat Gar Mat Gar Mat Gar Machines Disabled 29 | . 5 . . . 4 7 1 7 . 5 Max in Single Turn 2 | . 2 . . . 1 1 1 1 . 1 Garrison Relay 15 | . . . . . . 6 . 5 . 4 Machines Repaired . | . . . . . . . . . . . Machines Sabotaged . | . . . . . . . . . . . Overloaded Fab Kills . | . . . . . . . . . . . Hacking | -11 -10 -10 -10 -9 -8 -8 -8 -8 -8 -8 --------- Run | Jun Mat Min Exi Min Mat Gar Mat Gar Mat Gar Machines Accessed 36 | . 8 . 1 . 8 2 7 1 7 2 Terminals 27 | . 5 . . . 6 2 5 1 6 2 Fabricators . | . . . . . . . . . . . Repair Stations 1 | . 1 . . . . . . . . . Recycling Units 2 | . 2 . . . . . . . . . Scanalyzers 2 | . . . . . 1 . 1 . . . Garrison Access 3 | . . . . . 1 . 1 . 1 . Total Hacks 89 | . 15 . 1 . 18 5 22 2 20 6 Successful 46 | . 8 . 1 . 8 3 13 1 11 1 Failed 43 | . 7 . . . 10 2 9 1 9 5 Catastrophic 15 | . 3 . . . 2 1 4 . 5 . Database Lockouts . | . . . . . . . . . . . Manual 66 | . 13 . . . 15 2 17 . 14 5 Terminals 75 | . 11 . . . 15 5 17 2 19 6 Fabricators . | . . . . . . . . . . . Repair Stations 2 | . 2 . . . . . . . . . Recycling Units 2 | . 2 . . . . . . . . . Scanalyzers 6 | . . . . . 2 . 4 . . . Garrison Access 3 | . . . . . 1 . 1 . 1 . Terminal Hacks 19 | . 1 . 1 . 1 2 5 1 7 1 Record 1 | . . . 1 . . . . . . . Emergency Access Points 2 | . . . . . . 1 . . . 1 Terminal Index 2 | . 1 . . . . . . . 1 . Garrison Index 2 | . . . . . 1 . 1 . . . Alert Level 2 | . . . . . . . 1 . 1 . Unreport Threat 7 | . . . . . . . 3 . 4 . Recall Investigation 1 | . . . . . . . . . 1 . Garrison Registry 2 | . . . . . . 1 . 1 . . Fabricator Hacks . | . . . . . . . . . . . Repair Station Hacks 1 | . 1 . . . . . . . . . Scan Component 1 | . 1 . . . . . . . . . Recycling Unit Hacks . | . . . . . . . . . . . Scanalyzer 6 | . . . . . 2 . 4 . . . Insert Component 3 | . . . . . 1 . 2 . . . Analyze 3 | . . . . . 1 . 2 . . . Garrison Access Hacks 3 | . . . . . 1 . 1 . 1 . Unlock Access 3 | . . . . . 1 . 1 . 1 . Unauthorized Hacks 17 | . 6 . . . 4 1 3 . 3 . Terminals 15 | . 4 . . . 4 1 3 . 3 . Assimilate 5 | . 3 . . . . . . . 2 . Botnet 9 | . . . . . 4 1 3 . 1 . Operators 1 | . 1 . . . . . . . . . Fabricators . | . . . . . . . . . . . Repair Stations . | . . . . . . . . . . . Recycling Units 2 | . 2 . . . . . . . . . Tunnel 2 | . 2 . . . . . . . . . Scanalyzers . | . . . . . . . . . . . Garrison Access . | . . . . . . . . . . . Data Cores Recovered 1 | . . . . . . . 1 . . . Used . | . . . . . . . . . . . Hacking Detections 30 | . 4 . . . 8 2 7 1 6 2 Full Trace Events 1 | . . . . . . . . . . 1 Feedback Events . | . . . . . . . . . . . Feedback Blocked . | . . . . . . . . . . . Robot Schematics Acquired . | . . . . . . . . . . . Robots Built . | . . . . . . . . . . . Authchips . | . . . . . . . . . . . Time . | . . . . . . . . . . . Total Robot Build Rating . | . . . . . . . . . . . Part Schematics Acquired 3 | . . . . . 1 . 2 . . . Parts Built . | . . . . . . . . . . . Authchips . | . . . . . . . . . . . Time . | . . . . . . . . . . . Total Part Build Rating . | . . . . . . . . . . . Parts Repaired . | . . . . . . . . . . . Time . | . . . . . . . . . . . Parts Recycled . | . . . . . . . . . . . Recycled Matter . | . . . . . . . . . . . Retrieved Matter . | . . . . . . . . . . . Retrieved Components . | . . . . . . . . . . . Parts Scanalyzed 3 | . . . . . 1 . 2 . . . Part Schematics Acquired 3 | . . . . . 1 . 2 . . . Parts Damaged . | . . . . . . . . . . . Bothacking | -11 -10 -10 -10 -9 -8 -8 -8 -8 -8 -8 ------------ Run | Jun Mat Min Exi Min Mat Gar Mat Gar Mat Gar Used RIF Installer . | . . . . . . . . . . . Robots Hacked . | . . . . . . . . . . . Non-combat . | . . . . . . . . . . . Combat . | . . . . . . . . . . . Robot Hacks Applied . | . . . . . . . . . . . Relay Couplers Released 62 | . . . . . . 27 . 20 . 15 Machine Destruction 62 | . . . . . . 27 . 20 . 15 Fabnet Peak Effective % . | . . . . . . . . . . . Robots Rewired 9 | . . . . . . 6 . . . 3 Allies Hacked . | . . . . . . . . . . . Hacks Repelled . | . . . . . . . . . . . Allies | -11 -10 -10 -10 -9 -8 -8 -8 -8 -8 -8 -------- Run | Jun Mat Min Exi Min Mat Gar Mat Gar Mat Gar Total Allies 12 | . 1 1 . . . 6 . . 1 3 Largest Group 3 | . 1 2 . . . 3 3 . 1 3 Highest-Rated Group 72 | . 10 41 . . . 72 15 . 10 48 Highest-Rated Ally 31 | . 10 31 . . . 24 5 . 10 16 Total Orders . | . . . . . . . . . . . Ally Attacks 99 | . . 8 . . . 23 37 . . 31 Total Damage 1356 | . . 145 . . . 623 199 . . 389 Kills 24 | . . 2 . . . 7 4 . . 11 Allies Corrupted . | . . . . . . . . . . . Allies Melted . | . . . . . . . . . . . Intel | -11 -10 -10 -10 -9 -8 -8 -8 -8 -8 -8 ------- Run | Jun Mat Min Exi Min Mat Gar Mat Gar Mat Gar Robot Analysis Total . | . . . . . . . . . . . Derelict Logs Recovered 1 | . . . . 1 . . . . . . Drone Launches . | . . . . . . . . . . . Drone Recoveries . | . . . . . . . . . . . Exploration | -11 -10 -10 -10 -9 -8 -8 -8 -8 -8 -8 ------------- Run | Jun Mat Min Exi Min Mat Gar Mat Gar Mat Gar Turns Passed 11780 | 88 1897 517 246 457 3045 1753 1008 1068 687 1014 Spaces Moved 5167 | 51 871 198 177 300 1006 742 410 501 324 587 Core 3 | 3 . . . . . . . . . . Treads 1549 | 48 871 124 . . 506 . . . . . Legs . | . . . . . . . . . . . Wheels 3615 | . . 74 177 300 500 742 410 501 324 587 Hover . | . . . . . . . . . . . Flight . | . . . . . . . . . . . Fastest Speed 50 | 50 160 130 130 145 145 140 195 140 135 135 Average Speed 178 | 153 172 198 138 145 221 188 209 157 149 137 Slowest Speed 490 | 160 240 240 145 145 490 225 210 210 150 150 Overloaded Moves . | . . . . . . . . . . . Propulsion Burnouts . | . . . . . . . . . . . Robots Hopped . | . . . . . . . . . . . Cave-ins Triggered . | . . . . . . . . . . . Exploration Rate (%) 56 | 4 97 48 53 69 79 79 39 54 35 65 Regions Visited 10 Branch Regions 3 Pre-discovered Areas 5 | . 2 . 1 2 . . . . . . Known Exits Taken 3 | . . . . . 1 . 1 . 1 . Unknown Exits Taken 5 | 1 1 1 1 1 . . . . . . Scrap Searched 2 | . . . . 2 . . . . . . Spaces Dug 107 | . 2 . . . 54 14 . 3 1 33 Terrain Destroyed 297 | . 3 3 . . 170 31 14 10 1 65 Melee 12 | . . . . . 6 2 . 3 1 . Projectile 46 | . 3 1 . . 33 3 6 . . . AOE 239 | . . 2 . . 131 26 8 7 . 65 Terrain Rammed . | . . . . . . . . . . . Walls Destroyed . | . . . . . . . . . . . Machines Disabled . | . . . . . . . . . . . Actions | -11 -10 -10 -10 -9 -8 -8 -8 -8 -8 -8 --------- Run | Jun Mat Min Exi Min Mat Gar Mat Gar Mat Gar Total 6900 | 58 1141 253 179 312 1608 961 522 666 472 728 Wait 783 | . 159 10 . 8 359 32 52 22 94 47 Move 5160 | 50 870 197 176 299 1006 741 410 500 324 587 Hop . | . . . . . . . . . . . Pick Up 90 | 2 21 3 1 . 32 6 9 10 5 1 Fast Attach 44 | 6 5 . . . 17 8 5 2 . 1 Attach 28 | . . 3 . . 16 1 1 4 1 2 Detach 1 | . . . . . . . . 1 . . Swap 85 | . 5 4 1 . 22 8 8 20 5 12 Drop 73 | . 12 1 1 . 32 4 9 8 6 . Fire 386 | . 68 35 . 5 104 39 28 37 36 34 Melee 108 | . . . . . 19 46 . 30 1 12 Ram . | . . . . . . . . . . . Kick . | . . . . . . . . . . . Crush 2 | . 1 . . . 1 . . . . . Escape Stasis 88 | . . . . . . 40 . 32 . 16 Rewire 52 | . . . . . . 36 . . . 16 Trap . | . . . . . . . . . . . Miscellaneous . | . . . . . . . . . . . Route ------- -11/Junkyard -10/Materials (discovered 4 exits: [*Mat x3] / [*Min]) -10/Mines -10/Exiles -9/Mines (discovered 2 exits: *Mat x2) -8/Materials (discovered 3 exits: [*Fac x2] / Gar) -8/Garrison (discovered 4 exits: [*Fac x3] / *Mat) -8/Materials (discovered 2 exits: [*Fac] / Gar) -8/Garrison (discovered 4 exits: *Mat x4) -8/Materials -8/Garrison (discovered 3 exits: [*Mat x3]) History --------- Turn | Location | Event 49 | -11/Junkyard | Discovered new exit (range 16) 89 | -11/Junkyard | Entered Materials 331 | -10/Materials | Build established: Mutant 443 | -10/Materials | Discovered new exit (range 3) 880 | -10/Materials | Discovered new exit (range 10) 1397 | -10/Materials | Discovered new exit (range 8) 1875 | -10/Materials | Discovered new exit (range 11) 1986 | -10/Materials | Entered Mines 1986 | -10/Mines | Accompanied by 1 ally 1993 | -10/Mines | Received a Rocket Launcher from a helpful Derelict 1994 | -10/Mines | Met a Derelict testing a Signal Generator 2019 | -10/Mines | Excavation squad dispatched 2019 | -10/Mines | A large section of the Mines collapsed 2259 | -10/Mines | Core integrity fell below 50% 2269 | -10/Mines | Excavation squad dispatched 2484 | -10/Mines | Deemed a non-threat by the Exiles lab entrance 2485 | -10/Mines | Discovered new exit (range 5) 2503 | -10/Mines | Entered Exiles 2536 | -10/Exiles | Met 8R-AWN 2557 | -10/Exiles | Met EX-HEX 2656 | -10/Exiles | Met EX-DEC 2682 | -10/Exiles | Learned location of Zion (-6) 2732 | -10/Exiles | Discovered new exit (range 14) 2749 | -10/Exiles | Entered Mines 2941 | -9/Mines | Met a Derelict bent on vengeance 2973 | -9/Mines | Discovered new exit (range 6) 3069 | -9/Mines | Learned location of Storage (-7) 3200 | -9/Mines | Discovered new exit (range 5) 3206 | -9/Mines | Entered Materials 3206 | -8/Materials | Evolved 4 slots: Utility x4 4552 | -8/Materials | Build established: Scavenger-Mutant 4802 | -8/Materials | Discovered new exit (range 8) 5110 | -8/Materials | Lost 4 parts (1n3u) 5360 | -8/Materials | Build established: Mutant 6069 | -8/Materials | Discovered new exit (range 8) 6251 | -8/Materials | Identified exit to Garrison 6251 | -8/Materials | Entered Garrison 6316 | -8/Garrison | Triggered checkpoint 6352 | -8/Garrison | Garrison Relay disabled 6412 | -8/Garrison | Triggered checkpoint 6638 | -8/Garrison | Triggered checkpoint 6638 | -8/Garrison | Triggered checkpoint 6646 | -8/Garrison | Core integrity fell below 50% 6670 | -8/Garrison | Build established: Scavenger-Mutant 6822 | -8/Garrison | Discovered new exit (range 12) 6882 | -8/Garrison | Triggered checkpoint 6921 | -8/Garrison | Garrison Relay disabled 7218 | -8/Garrison | Triggered checkpoint 7273 | -8/Garrison | Garrison Relay disabled 7314 | -8/Garrison | Discovered new exit (range 13) 7336 | -8/Garrison | Garrison Relay disabled 7504 | -8/Garrison | Garrison Relay disabled 7559 | -8/Garrison | Discovered new exit (range 59) 7559 | -8/Garrison | Discovered new exit (range 34) 7559 | -8/Garrison | Discovered new exit (range 69) 7559 | -8/Garrison | Discovered new exit (range 78) 7629 | -8/Garrison | Triggered checkpoint 7860 | -8/Garrison | Triggered checkpoint 7912 | -8/Garrison | Lost 3 parts (1p1n1u) 7921 | -8/Garrison | Garrison Relay disabled 8004 | -8/Garrison | Entered Materials 8004 | -8/Materials | Accompanied by 3 allies 8188 | -8/Materials | Build established: Mutant 8610 | -8/Materials | Discovered new exit (range 9) 8920 | -8/Materials | Garrison activated, responded to threat 9012 | -8/Materials | Identified exit to Garrison 9012 | -8/Materials | Entered Garrison 9027 | -8/Garrison | Garrison Relay disabled 9046 | -8/Garrison | Build established: Hacker-Mutant 9086 | -8/Garrison | Triggered checkpoint 9128 | -8/Garrison | Garrison Relay disabled 9152 | -8/Garrison | Triggered checkpoint 9458 | -8/Garrison | Triggered checkpoint 9627 | -8/Garrison | Discovered new exit (range 68) 9627 | -8/Garrison | Discovered new exit (range 21) 9627 | -8/Garrison | Discovered new exit (range 39) 9627 | -8/Garrison | Discovered new exit (range 54) 9653 | -8/Garrison | Garrison Relay disabled 9690 | -8/Garrison | Triggered checkpoint 9766 | -8/Garrison | Triggered checkpoint 9779 | -8/Garrison | Garrison Relay disabled 10080 | -8/Garrison | Entered Materials 10720 | -8/Materials | Garrison activated, responded to threat 10767 | -8/Materials | Identified exit to Garrison 10767 | -8/Materials | Entered Garrison 10769 | -8/Garrison | Destroyed 8 combat bots 10796 | -8/Garrison | Triggered checkpoint 10799 | -8/Garrison | Core integrity fell below 20% 10819 | -8/Garrison | Garrison Relay disabled 11032 | -8/Garrison | Triggered checkpoint 11086 | -8/Garrison | Discovered new exit (range 6) 11220 | -8/Garrison | Triggered checkpoint 11277 | -8/Garrison | Discovered new exit (range 13) 11326 | -8/Garrison | Triggered checkpoint 11358 | -8/Garrison | Garrison Relay disabled 11422 | -8/Garrison | Garrison Relay disabled 11468 | -8/Garrison | Triggered checkpoint 11558 | -8/Garrison | Discovered new exit (range 13) 11688 | -8/Garrison | Triggered checkpoint 11757 | -8/Garrison | Garrison Relay disabled 11781 | -8/Garrison | Destroyed by Y-45 Defender with Beam Rifle Last Messages --------------- 11628_ W-25 Informer destroyed. 11630_ Acquired 10 matter. 11634_ Triggered Alarm Trap. 11634_ An alarm sounds. 11636_ Connecting with Garrison Terminal... 11636_ ALERT: Suspicious activity at Terminal G001. Transmitting hostile system tracking data. 11638_ Arm. Wheel destroyed. 11643_ Y-45 Defender heat short circuits Heat Sink. 11644_ Y-45 Defender destroyed. 11649_ Acquired 10 matter. 11665_ G-47 Trooper destroyed. 11673_ Acquired 5 matter. 11688_ Beams of light sweep through the air. An alarm sounds. 11691_ G-47 Trooper destroyed. 11757_ Garrison Relay disabled. 11757_ Relay Coupler [Duelist] tumbles out of relay unit. 11757_ Relay Coupler [Swarmer] tumbles out of relay unit. 11757_ Relay Coupler [NC] tumbles out of relay unit. 11757_ Relay Coupler [Swarmer] tumbles out of relay unit. Map ----- +----------------------------------------------------+ | | | | | | | | | | | | | | | | | ?????????????????????????????????????????????????? | | ?????????????????????????????????????????????????? | | ?????????????????????????????????????????????????? | | ?????????????????????????????????????????????????? | | ?????????????????????????????????????????????????? | | ?????????????????????????????????????????????????? | | ?????????????????????????????????????????????????? | | ?????????????????????????????????????????????????? | | ???????????????????????###???????????????????????? | | ???????????????????????# ???????????????????????? | | ???????????????????????# ???????????????????????? | | ???????????????????????# ???????????????????????? | | ???????????????????????# #???????????????????????? | | ???????????????????????# #???????????????????????? | | ???????????????????????# #?#######???????????????? | | ???????????????????????#Y#?#""""!#???????????????? | | ???????????????????????#Y#### !!######???????????? | | ???????????????????????# @ ! #####???????? | | ???????????????????????# ########### #!!!#???????? | | ???????????????????????# #?????????# #! !#???????? | | ???????????????????????# #???????### #! !#??###??? | | ???????????????????????# "???????# ## #??? ?## | | ??????????????????????? "?+?????+ #??#